[Event "The Schackveckan 2023: Chessweek Elo-tournaments Group 1"]
[Site "Göteborgs schackcentrum, Vegagatan 20, Gothenburg, Sweden"]
[Date "2023.08.09"]
[Round "5.2"]
[White "Tobiasson, Bjorn"]
[Black "Fransson, Lennart"]
[Result "0-1"]
[TimeControl "90 minutes for 40 moves + 30 minutes for the rest of the game + 30 seconds per move from move one."]
[WhiteFideId "1773682"]
[BlackFideId "1706756"]
[WhiteElo "1830"]
[BlackElo "1834"]

1. d4 {[%clk 01:30:39]} {[%emt 00:00:03]} Nf6 {[%clk 01:30:59]} 2. c4 {[%clk
01:30:50]} {[%emt 00:00:37]} c5 {[%clk 01:31:22]} {[%emt 00:00:07]} 3. d5
{[%clk 01:31:02]} {[%emt 00:00:19]} d6 {[%clk 01:31:49]} {[%emt 00:00:02]} 4.
Nc3 {[%clk 01:30:48]} {[%emt 00:00:44]} g6 {[%clk 01:31:19]} {[%emt 00:01:00]}
5. Nf3 {[%clk 01:27:08]} {[%emt 00:04:10]} Bg7 {[%clk 01:31:34]} {[%emt
00:00:14]} 6. Qc2 {[%clk 01:23:35]} {[%emt 00:04:05]} O-O {[%clk 01:31:12]}
{[%emt 00:00:50]} 7. g3 {[%clk 01:19:19]} {[%emt 00:04:48]} Na6 {[%clk
01:30:18]} {[%emt 00:01:23]} 8. a3 {[%clk 01:19:24]} {[%emt 00:00:26]} Bd7
{[%clk 01:28:57]} {[%emt 00:01:49]} 9. Bg2 {[%clk 01:17:58]} {[%emt 00:01:57]}
Nc7 {[%clk 01:29:17]} {[%emt 00:00:10]} 10. Rb1 {[%clk 01:11:24]} {[%emt
00:07:05]} b5 {[%clk 01:26:26]} {[%emt 00:03:21]} 11. Nd2 {[%clk 01:06:07]}
{[%emt 00:05:46]} Rb8 {[%clk 01:25:33]} {[%emt 00:01:23]} 12. O-O {[%clk
01:05:02]} {[%emt 00:01:36]} bxc4 {[%clk 01:20:34]} {[%emt 00:05:28]} 13. Nxc4
{[%clk 01:03:07]} {[%emt 00:02:25]} Nb5 {[%clk 01:09:08]} {[%emt 00:11:56]} 14.
Nxb5 {[%clk 00:59:17]} {[%emt 00:04:21]} Rxb5 {[%clk 01:05:27]} {[%emt
00:04:10]} 15. b4 {[%clk 00:55:47]} {[%emt 00:04:00]} cxb4 {[%clk 01:00:24]}
{[%emt 00:05:33]} 16. axb4 {[%clk 00:55:25]} {[%emt 00:00:53]} Nxd5 {[%clk
00:49:32]} {[%emt 00:11:21]} 17. Na3 {[%clk 00:49:42]} {[%emt 00:06:13]} Nxb4
{[%clk 00:49:30]} {[%emt 00:00:31]} 18. Qd2 {[%clk 00:49:43]} {[%emt 00:00:30]}
a5 {[%clk 00:47:34]} {[%emt 00:02:25]} 19. Nxb5 {[%clk 00:49:52]} {[%emt
00:00:22]} Bxb5 {[%clk 00:48:01]} {[%emt 00:00:03]} 20. Bb2 {[%clk 00:47:38]}
{[%emt 00:02:45]} Bxb2 {[%clk 00:46:15]} {[%emt 00:02:15]} 21. Rxb2 {[%clk
00:45:57]} {[%emt 00:02:12]} Bc4 {[%clk 00:43:06]} {[%emt 00:03:39]} 22. Rc1
{[%clk 00:43:40]} {[%emt 00:02:46]} d5 {[%clk 00:40:46]} {[%emt 00:02:50]} 23.
Bf1 {[%clk 00:37:57]} {[%emt 00:06:13]} Qb6 {[%clk 00:29:26]} {[%emt 00:11:50]}
24. e3 {[%clk 00:37:40]} {[%emt 00:00:47]} Bxf1 {[%clk 00:29:25]} {[%emt
00:00:30]} 25. Kxf1 {[%clk 00:37:42]} {[%emt 00:00:29]} e5 {[%clk 00:29:00]}
{[%emt 00:00:54]} 26. Kg1 {[%clk 00:33:21]} {[%emt 00:04:52]} Re8 {[%clk
00:21:11]} {[%emt 00:08:19]} 27. Rbb1 {[%clk 00:24:37]} {[%emt 00:09:15]} e4
{[%clk 00:16:50]} {[%emt 00:04:50]} 28. Qc3 {[%clk 00:22:51]} {[%emt 00:02:16]}
Qe6 {[%clk 00:16:45]} {[%emt 00:00:35]} 29. Rd1 {[%clk 00:13:54]} {[%emt
00:09:26]} Rc8 {[%clk 00:13:19]} {[%emt 00:03:56]} 30. Qd4 {[%clk 00:10:18]}
{[%emt 00:04:07]} Rc4 {[%clk 00:11:21]} {[%emt 00:02:28]} 31. Qa7 {[%clk
00:09:16]} {[%emt 00:01:32]} Nc6 {[%clk 00:06:36]} {[%emt 00:05:14]} 32. Qa8+
{[%clk 00:08:58]} {[%emt 00:00:49]} Kg7 {[%clk 00:06:55]} {[%emt 00:00:11]} 33.
Rb6 {[%clk 00:09:20]} {[%emt 00:00:08]} Rc2 {[%clk 00:05:07]} {[%emt 00:02:17]}
34. Rf1 {[%clk 00:07:50]} {[%emt 00:02:01]} d4 {[%clk 00:03:53]} {[%emt
00:01:44]} 35. exd4 {[%clk 00:07:22]} {[%emt 00:00:58]} e3 {[%clk 00:04:09]}
{[%emt 00:00:14]} 36. Rxc6 {[%emt 00:03:39]} exf2+ {[%clk 00:03:37]} {[%emt
00:01:00]} 37. Kg2 {[%clk 00:03:17]} {[%emt 00:01:28]} Qe4+ {[%clk 00:01:34]}
{[%emt 00:02:33]} 38. Kh3 {[%clk 00:03:27]} {[%emt 00:00:20]} Qf5+ {[%clk
00:01:48]} {[%emt 00:00:16]} 39. Kg2 {[%clk 00:02:50]} {[%emt 00:01:07]} Qd5+
{[%clk 00:01:44]} {[%emt 00:00:32]} 40. Kh3 {[%clk 00:03:05]} {[%emt 00:00:16]}
Qd7+ {[%clk 00:01:08]} {[%emt 00:01:06]} 41. Re6 {[%clk 00:01:52]} {[%emt
00:01:45]} a4 {[%clk 00:23:27]} {[%emt 00:08:10]} 42. Kg2 {[%clk 00:27:18]}
{[%emt 00:05:03]} fxe6 {[%clk 00:23:36]} {[%emt 00:00:21]} 0-1

[Event "The Schackveckan 2023: Chessweek Elo-tournaments Group 1"]
[Site "Göteborgs schackcentrum, Vegagatan 20, Gothenburg, Sweden"]
[Date "2023.08.09"]
[Round "5.3"]
[White "Johansson, Eva"]
[Black "Frisk, Anders"]
[Result "0-1"]
[TimeControl "90 minutes for 40 moves + 30 minutes for the rest of the game + 30 seconds per move from move one."]
[WhiteFideId "1724584"]
[BlackFideId "1718797"]
[WhiteElo "1808"]
[BlackElo "1808"]

1. d4 {[%clk 01:30:56]} {[%emt 00:00:03]} f5 {[%clk 01:30:55]} {[%emt
00:00:07]} 2. g3 {[%emt 00:00:13]} Nf6 {[%clk 01:30:38]} {[%emt 00:00:42]} 3.
Bg2 {[%clk 01:31:33]} {[%emt 00:00:14]} g6 {[%clk 01:30:58]} {[%emt 00:00:10]}
4. b3 {[%clk 01:31:37]} {[%emt 00:00:26]} Bg7 {[%clk 01:30:52]} {[%emt
00:00:36]} 5. Bb2 {[%clk 01:31:55]} {[%emt 00:00:13]} d6 {[%clk 01:30:45]}
{[%emt 00:00:37]} 6. Nf3 {[%clk 01:31:45]} {[%emt 00:00:39]} O-O {[%clk
01:29:29]} {[%emt 00:01:47]} 7. O-O {[%clk 01:31:20]} {[%emt 00:00:54]} c6
{[%clk 01:28:39]} {[%emt 00:01:21]} 8. c4 {[%clk 01:29:22]} {[%emt 00:02:25]}
Na6 {[%clk 01:25:22]} {[%emt 00:03:50]} 9. a3 {[%clk 01:24:22]} {[%emt
00:05:29]} Ne4 {[%clk 01:21:07]} {[%emt 00:04:46]} 10. Nbd2 {[%clk 01:18:15]}
{[%emt 00:06:34]} Nac5 {[%clk 01:16:23]} {[%emt 00:05:16]} 11. Qc2 {[%clk
01:17:17]} {[%emt 00:01:26]} Nxd2 {[%clk 01:06:34]} {[%emt 00:10:22]} 12. Nxd2
{[%clk 01:17:35]} {[%emt 00:00:11]} Ne6 {[%clk 00:59:22]} {[%emt 00:07:41]} 13.
d5 {[%clk 01:13:48]} {[%emt 00:04:18]} Nd4 {[%clk 00:56:50]} {[%emt 00:03:02]}
14. Bxd4 {[%clk 01:10:30]} {[%emt 00:03:49]} Bxd4 {[%clk 00:56:30]} {[%emt
00:00:49]} 15. Rad1 {[%clk 01:10:44]} {[%emt 00:00:12]} cxd5 {[%clk 00:54:06]}
{[%emt 00:02:58]} 16. Bxd5+ {[%clk 01:10:05]} {[%emt 00:01:09]} e6 {[%emt
00:01:24]} 17. Bg2 {[%clk 01:10:18]} Qb6 {[%clk 00:50:56]} {[%emt 00:03:03]} 18.
e3 {[%clk 01:06:47]} {[%emt 00:03:59]} Bf6 {[%clk 00:50:25]} {[%emt 00:01:00]}
19. Qd3 {[%clk 01:03:43]} {[%emt 00:03:34]} Rd8 {[%clk 00:45:56]} {[%emt
00:05:01]} 20. Nf3 {[%clk 01:01:31]} {[%emt 00:02:41]} d5 {[%clk 00:38:54]}
{[%emt 00:07:33]} 21. cxd5 {[%clk 00:54:47]} {[%emt 00:07:14]} Bd7 {[%clk
00:31:33]} {[%emt 00:07:51]} 22. Nd2 {[%clk 00:50:42]} {[%emt 00:04:32]} e5
{[%clk 00:23:56]} {[%emt 00:08:10]} 23. e4 {[%clk 00:46:57]} {[%emt 00:04:13]}
Rac8 {[%clk 00:18:59]} {[%emt 00:05:28]} 24. Rc1 {[%clk 00:42:10]} {[%emt
00:05:17]} Bg5 {[%clk 00:16:21]} {[%emt 00:03:09]} 25. Rxc8 {[%clk 00:40:15]}
{[%emt 00:02:24]} Rxc8 {[%clk 00:16:17]} {[%emt 00:00:34]} 26. Nc4 {[%clk
00:38:02]} {[%emt 00:02:41]} Qc7 {[%clk 00:13:44]} {[%emt 00:03:06]} 27. Rd1
{[%clk 00:31:26]} {[%emt 00:07:06]} b5 {[%clk 00:12:50]} {[%emt 00:01:25]} 28.
Ne3 {[%clk 00:23:59]} {[%emt 00:07:56]} Qc5 {[%clk 00:09:41]} {[%emt 00:03:40]}
29. h4 {[%clk 00:13:54]} {[%emt 00:10:35]} Bh6 {[%clk 00:08:13]} {[%emt
00:01:58]} 30. b4 {[%clk 00:11:52]} {[%emt 00:02:31]} Qc3 {[%clk 00:06:33]}
{[%emt 00:02:11]} 31. exf5 {[%clk 00:12:00]} {[%emt 00:00:20]} Bxe3 {[%clk
00:04:31]} {[%emt 00:02:33]} 32. fxe3 {[%clk 00:11:06]} {[%emt 00:01:23]} Bxf5
{[%clk 00:03:30]} {[%emt 00:01:32]} 33. e4 {[%clk 00:10:55]} {[%emt 00:00:40]}
Bg4 {[%clk 00:03:13]} {[%emt 00:00:49]} 34. Rd2 {[%clk 00:09:54]} {[%emt
00:01:28]} Qc1+ {[%clk 00:02:25]} {[%emt 00:01:20]} 35. Kh2 {[%clk 00:07:52]}
{[%emt 00:02:32]} Rc3 {[%clk 00:01:46]} {[%emt 00:01:09]} 0-1

[Event "The Schackveckan 2023: Chessweek Elo-tournaments Group 1"]
[Site "Göteborgs schackcentrum, Vegagatan 20, Gothenburg, Sweden"]
[Date "2023.08.09"]
[Round "5.4"]
[White "Bengtsson, Jonas"]
[Black "Harila, Per"]
[Result "1-0"]
[TimeControl "90 minutes for 40 moves + 30 minutes for the rest of the game + 30 seconds per move from move one."]
[WhiteFideId "1715135"]
[BlackFideId "1707248"]
[WhiteElo "2013"]
[BlackElo "2016"]

1. d4 {[%clk 01:30:57]} {[%emt 00:00:01]} f5 {[%clk 01:30:38]} {[%emt
00:00:23]} 2. g3 {[%clk 01:31:22]} {[%emt 00:00:05]} Nf6 {[%clk 01:30:44]}
{[%emt 00:00:24]} 3. Bg2 {[%clk 01:31:45]} {[%emt 00:00:06]} e6 {[%clk
01:31:09]} {[%emt 00:00:06]} 4. c4 {[%clk 01:32:09]} {[%emt 00:00:06]} d5
{[%clk 01:31:19]} {[%emt 00:00:19]} 5. Nh3 {[%clk 01:30:21]} {[%emt 00:02:18]}
c6 {[%clk 01:31:22]} {[%emt 00:00:28]} 6. O-O {[%clk 01:30:39]} {[%emt
00:00:12]} Bd6 {[%clk 01:31:36]} {[%emt 00:00:16]} 7. Bf4 {[%clk 01:30:56]}
{[%emt 00:00:13]} Be7 {[%clk 01:31:51]} {[%emt 00:00:15]} 8. Qc2 {[%clk
01:27:16]} {[%emt 00:04:11]} O-O {[%clk 01:30:54]} {[%emt 00:01:27]} 9. Nc3
{[%clk 01:25:10]} {[%emt 00:02:36]} h6 {[%clk 01:30:49]} {[%emt 00:00:35]} 10.
Rad1 {[%clk 01:25:24]} {[%emt 00:00:15]} Bd7 {[%clk 01:28:47]} {[%emt
00:02:32]} 11. b3 {[%clk 01:20:08]} {[%emt 00:05:46]} Be8 {[%clk 01:28:41]}
{[%emt 00:00:37]} 12. f3 {[%clk 01:15:43]} {[%emt 00:04:55]} Bh5 {[%clk
01:19:31]} {[%emt 00:09:39]} 13. Bc1 {[%clk 01:04:28]} {[%emt 00:11:45]} Bd6
{[%clk 01:18:04]} {[%emt 00:01:57]} 14. Nf4 {[%clk 01:01:13]} {[%emt 00:03:44]}
Qe7 {[%clk 01:05:30]} {[%emt 00:13:04]} 15. Nxh5 {[%clk 00:56:55]} {[%emt
00:04:48]} Nxh5 {[%clk 00:59:22]} {[%emt 00:06:39]} 16. e4 {[%clk 00:56:45]}
{[%emt 00:00:41]} Nxg3 {[%clk 00:38:40]} {[%emt 00:21:11]} 17. hxg3 {[%clk
00:49:54]} {[%emt 00:07:21]} Bxg3 {[%clk 00:38:21]} {[%emt 00:00:49]} 18. e5
{[%clk 00:48:17]} {[%emt 00:02:07]} f4 {[%clk 00:36:34]} {[%emt 00:02:17]} 19.
Bh3 {[%clk 00:46:26]} {[%emt 00:02:21]} Nd7 {[%clk 00:34:06]} {[%emt 00:02:58]}
20. Ne2 {[%clk 00:43:34]} {[%emt 00:03:21]} Rf7 {[%clk 00:24:02]} {[%emt
00:10:35]} 21. Nxg3 {[%clk 00:42:38]} {[%emt 00:01:26]} fxg3 {[%clk 00:24:29]}
{[%emt 00:00:02]} 22. Qg6 {[%clk 00:39:38]} {[%emt 00:03:31]} Nf8 {[%clk
00:23:42]} {[%emt 00:01:17]} 23. Qxg3 {[%clk 00:39:59]} {[%emt 00:00:09]} g5
{[%clk 00:23:50]} {[%emt 00:00:22]} 24. f4 {[%clk 00:39:12]} {[%emt 00:01:16]}
Rg7 {[%clk 00:23:50]} {[%emt 00:00:31]} 25. f5 {[%clk 00:36:04]} {[%emt
00:03:38]} exf5 {[%clk 00:24:00]} {[%emt 00:00:20]} 26. Bxf5 {[%clk 00:36:17]}
{[%emt 00:00:17]} Ng6 {[%clk 00:23:36]} {[%emt 00:00:53]} 27. Bxg6 {[%clk
00:36:34]} {[%emt 00:00:13]} Rxg6 {[%clk 00:23:53]} {[%emt 00:00:13]} 28. Qg4
{[%clk 00:33:27]} {[%emt 00:03:37]} Qg7 {[%clk 00:18:35]} {[%emt 00:05:49]} 29.
Ba3 {[%clk 00:33:25]} {[%emt 00:00:32]} a5 {[%clk 00:18:30]} {[%emt 00:00:35]}
30. e6 {[%clk 00:32:49]} {[%emt 00:01:06]} h5 {[%clk 00:17:43]} {[%emt
00:01:17]} 31. Qf5 {[%clk 00:32:57]} {[%emt 00:00:21]} 1-0

[Event "The Schackveckan 2023: Chessweek Elo-tournaments Group 1"]
[Site "Göteborgs schackcentrum, Vegagatan 20, Gothenburg, Sweden"]
[Date "2023.08.10"]
[Round "6.1"]
[White "Bengtsson, Jonas"]
[Black "Pettersson, Anders 1981"]
[Result "0-1"]
[TimeControl "90 minutes for 40 moves + 30 minutes for the rest of the game + 30 seconds per move from move one."]
[WhiteFideId "1715135"]
[BlackFideId "1715143"]
[WhiteElo "2013"]
[BlackElo "2003"]

1. d4 {[%clk 01:30:57]} {[%emt 00:00:02]} d5 {[%clk 01:30:26]} {[%emt
00:00:35]} 2. c4 {[%clk 01:31:21]} {[%emt 00:00:05]} e6 {[%clk 01:30:51]}
{[%emt 00:00:05]} 3. Nc3 {[%clk 01:31:47]} {[%emt 00:00:05]} c6 {[%clk
01:31:17]} {[%emt 00:00:04]} 4. e4 {[%clk 01:32:11]} {[%emt 00:00:06]} dxe4
{[%clk 01:29:13]} {[%emt 00:02:35]} 5. Nxe4 {[%clk 01:32:34]} {[%emt 00:00:05]}
Bb4+ {[%clk 01:29:29]} {[%emt 00:00:15]} 6. Bd2 {[%clk 01:32:56]} {[%emt
00:00:08]} Qxd4 {[%clk 01:29:50]} {[%emt 00:00:08]} 7. Bxb4 {[%clk 01:33:22]}
{[%emt 00:00:04]} Qxe4+ {[%clk 01:30:14]} {[%emt 00:00:06]} 8. Be2 {[%clk
01:33:26]} {[%emt 00:00:27]} Na6 {[%clk 01:30:35]} {[%emt 00:00:09]} 9. Bd6
{[%clk 01:32:49]} {[%emt 00:01:07]} Qxg2 {[%clk 01:30:12]} {[%emt 00:00:53]} 10.
Bf3 {[%clk 01:32:42]} {[%emt 00:00:37]} Qg5 {[%clk 01:28:55]} {[%emt 00:01:47]}
11. Ne2 {[%clk 01:26:28]} {[%emt 00:06:44]} Ne7 {[%clk 01:29:04]} {[%emt
00:00:20]} 12. Rg1 {[%clk 01:11:50]} {[%emt 00:15:09]} Qa5+ {[%clk 01:29:27]}
{[%emt 00:00:07]} 13. Kf1 {[%clk 01:12:06]} {[%emt 00:00:13]} Nf5 {[%clk
01:24:24]} {[%emt 00:05:34]} 14. Ba3 {[%clk 01:01:56]} {[%emt 00:10:40]} Bd7
{[%clk 01:19:56]} {[%emt 00:04:58]} 15. Nd4 {[%clk 00:56:48]} {[%emt 00:05:37]}
O-O-O {[%clk 01:16:22]} {[%emt 00:04:04]} 16. Nxf5 {[%clk 00:54:36]} {[%emt
00:02:42]} exf5 {[%clk 01:15:34]} {[%emt 00:01:18]} 17. Rxg7 {[%clk 00:50:18]}
{[%emt 00:04:49]} Be6 {[%clk 01:15:02]} {[%emt 00:01:02]} 18. Qc1 {[%clk
00:47:18]} {[%emt 00:03:29]} Qe5 {[%clk 01:11:48]} {[%emt 00:03:44]} 19. Rg2
{[%clk 00:45:53]} {[%emt 00:01:55]} f4 {[%clk 01:08:09]} {[%emt 00:04:09]} 20.
b3 {[%clk 00:38:53]} {[%emt 00:07:30]} Rhg8 {[%clk 01:04:20]} {[%emt 00:04:19]}
21. Bb2 {[%clk 00:36:05]} {[%emt 00:03:18]} Qf5 {[%clk 01:03:42]} {[%emt
00:01:08]} 22. Qc3 {[%clk 00:25:22]} {[%emt 00:11:14]} Rxg2 {[%clk 00:57:22]}
{[%emt 00:06:50]} 23. Bxg2 {[%clk 00:22:19]} {[%emt 00:03:33]} Nc5 {[%clk
00:57:00]} {[%emt 00:00:52]} 24. Kg1 {[%clk 00:17:39]} {[%emt 00:05:10]} Nd3
{[%clk 00:52:40]} {[%emt 00:04:50]} 25. f3 {[%clk 00:12:37]} {[%emt 00:05:31]}
Qc5+ {[%clk 00:52:32]} {[%emt 00:00:38]} 0-1

[Event "The Schackveckan 2023: Chessweek Elo-tournaments Group 1"]
[Site "Göteborgs schackcentrum, Vegagatan 20, Gothenburg, Sweden"]
[Date "2023.08.10"]
[Round "6.2"]
[White "Havner, Arvid"]
[Black "Tobiasson, Bjorn"]
[Result "0-1"]
[TimeControl "90 minutes for 40 moves + 30 minutes for the rest of the game + 30 seconds per move from move one."]
[WhiteFideId "1769308"]
[BlackFideId "1773682"]
[WhiteElo "1825"]
[BlackElo "1830"]

1. e4 {[%clk 01:30:59]} c6 {[%clk 01:30:48]} {[%emt 00:00:13]} 2. d4 {[%clk
01:31:25]} {[%emt 00:00:04]} d5 {[%clk 01:31:12]} {[%emt 00:00:06]} 3. e5
{[%clk 01:30:32]} {[%emt 00:01:24]} c5 {[%clk 01:31:35]} {[%emt 00:00:06]} 4.
dxc5 {[%clk 01:30:55]} {[%emt 00:00:07]} e6 {[%clk 01:31:55]} {[%emt 00:00:09]}
5. a3 {[%clk 01:31:16]} {[%emt 00:00:10]} Bxc5 {[%clk 01:31:53]} {[%emt
00:00:32]} 6. b4 {[%clk 01:30:54]} {[%emt 00:00:51]} Be7 {[%clk 01:29:27]}
{[%emt 00:02:56]} 7. Qg4 {[%clk 01:29:27]} {[%emt 00:01:57]} g6 {[%clk
01:25:01]} {[%emt 00:04:57]} 8. Bd3 {[%clk 01:26:32]} {[%emt 00:03:24]} Nc6
{[%clk 01:22:25]} {[%emt 00:03:06]} 9. Nf3 {[%clk 01:16:26]} {[%emt 00:10:36]}
h5 {[%clk 01:16:55]} {[%emt 00:06:00]} 10. Qg3 {[%clk 01:13:54]} {[%emt
00:03:01]} h4 {[%clk 01:13:10]} {[%emt 00:04:16]} 11. Qf4 {[%clk 01:07:43]}
{[%emt 00:06:36]} g5 {[%clk 01:08:07]} {[%emt 00:05:38]} 12. Qg4 {[%clk
00:42:22]} {[%emt 00:25:51]} Kd7 {[%clk 00:38:45]} {[%emt 00:29:53]} 13. b5
{[%clk 00:39:55]} {[%emt 00:02:56]} Na5 {[%clk 00:34:33]} {[%emt 00:04:42]} 14.
Nxg5 {[%clk 00:33:34]} {[%emt 00:06:50]} Nh6 {[%clk 00:34:31]} {[%emt
00:00:33]} 15. Qxh4 {[%clk 00:29:19]} {[%emt 00:04:45]} Nf5 {[%clk 00:31:27]}
{[%emt 00:03:34]} 16. Qg4 {[%clk 00:28:16]} {[%emt 00:01:31]} Rh4 {[%clk
00:31:37]} {[%emt 00:00:22]} 17. Qf3 {[%clk 00:19:08]} {[%emt 00:09:38]} Bxg5
{[%clk 00:31:08]} {[%emt 00:00:59]} 18. Bxf5 {[%clk 00:19:36]} {[%emt
00:00:03]} Bxc1 {[%clk 00:28:00]} {[%emt 00:03:37]} 19. O-O {[%clk 00:16:32]}
{[%emt 00:03:33]} Ke8 {[%clk 00:22:01]} {[%emt 00:06:30]} 20. g3 {[%clk
00:14:36]} {[%emt 00:02:27]} Qg5 {[%clk 00:18:17]} {[%emt 00:04:14]} 21. Kh1
{[%clk 00:12:49]} {[%emt 00:02:16]} Rc4 {[%clk 00:16:06]} {[%emt 00:02:41]} 22.
Bd3 {[%clk 00:13:01]} {[%emt 00:00:17]} Rc7 {[%clk 00:15:17]} {[%emt 00:01:20]}
23. h4 {[%clk 00:12:45]} {[%emt 00:00:46]} Qxe5 {[%clk 00:14:18]} {[%emt
00:01:29]} 24. Ra2 {[%clk 00:12:16]} {[%emt 00:00:59]} Bb2 {[%clk 00:14:20]}
{[%emt 00:00:27]} 25. Qg4 {[%clk 00:11:44]} {[%emt 00:01:02]} Qg7 {[%clk
00:14:18]} {[%emt 00:00:33]} 26. Qb4 {[%clk 00:11:57]} {[%emt 00:00:17]} Bc3
{[%clk 00:13:29]} {[%emt 00:01:19]} 27. Nxc3 {[%clk 00:09:26]} {[%emt
00:03:02]} Qxc3 {[%clk 00:13:56]} {[%emt 00:00:02]} 28. Qg4 {[%clk 00:09:16]}
{[%emt 00:00:39]} Qf6 {[%clk 00:12:00]} {[%emt 00:02:27]} 29. Qg8+ {[%clk
00:08:52]} {[%emt 00:00:54]} Ke7 {[%clk 00:12:16]} {[%emt 00:00:14]} 30. h5
{[%clk 00:08:20]} {[%emt 00:01:02]} b6 {[%clk 00:12:24]} {[%emt 00:00:22]} 31.
Qg4 {[%clk 00:04:11]} {[%emt 00:04:38]} Bb7 {[%clk 00:12:22]} {[%emt 00:00:33]}
32. f4 {[%clk 00:03:48]} {[%emt 00:00:52]} Nc4 {[%clk 00:11:10]} {[%emt
00:01:42]} 33. Qg5 {[%clk 00:03:03]} {[%emt 00:01:16]} Qxg5 {[%clk 00:10:30]}
{[%emt 00:01:09]} 34. fxg5 {[%clk 00:03:31]} {[%emt 00:00:03]} Rg8 {[%clk
00:10:42]} {[%emt 00:00:17]} 35. g6 {[%clk 00:03:50]} {[%emt 00:00:12]} fxg6
{[%clk 00:11:00]} {[%emt 00:00:12]} 36. Bxg6 {[%clk 00:04:19]} {[%emt
00:00:01]} Ne5 {[%clk 00:11:00]} {[%emt 00:00:30]} 0-1

[Event "The Schackveckan 2023: Chessweek Elo-tournaments Group 1"]
[Site "Göteborgs schackcentrum, Vegagatan 20, Gothenburg, Sweden"]
[Date "2023.08.10"]
[Round "6.3"]
[White "Fransson, Lennart"]
[Black "Johansson, Eva"]
[Result "1-0"]
[TimeControl "90 minutes for 40 moves + 30 minutes for the rest of the game + 30 seconds per move from move one."]
[WhiteFideId "1706756"]
[BlackFideId "1724584"]
[WhiteElo "1834"]
[BlackElo "1808"]

1. c4 {[%clk 01:30:56]} {[%emt 00:00:02]} Nf6 {[%clk 01:30:54]} {[%emt
00:00:06]} 2. g3 {[%clk 01:31:20]} {[%emt 00:00:06]} e5 {[%clk 01:31:14]}
{[%emt 00:00:11]} 3. Bg2 {[%clk 01:31:37]} {[%emt 00:00:09]} c6 {[%clk
01:31:42]} {[%emt 00:00:06]} 4. d4 {[%clk 01:27:36]} {[%emt 00:04:30]} e4
{[%clk 01:28:51]} {[%emt 00:03:21]} 5. d5 {[%clk 01:25:45]} {[%emt 00:02:21]}
Bb4+ {[%clk 01:24:56]} {[%emt 00:04:25]} 6. Bd2 {[%clk 01:20:31]} {[%emt
00:05:43]} Qb6 {[%clk 01:19:48]} {[%emt 00:05:37]} 7. e3 {[%clk 01:13:51]}
{[%emt 00:07:12]} cxd5 {[%clk 01:12:59]} {[%emt 00:07:20]} 8. cxd5 {[%clk
01:12:55]} {[%emt 00:01:25]} O-O {[%clk 01:13:07]} {[%emt 00:00:22]} 9. Bxb4
{[%clk 01:12:09]} {[%emt 00:01:17]} Qxb4+ {[%clk 01:13:13]} {[%emt 00:00:24]}
10. Qd2 {[%clk 01:12:35]} {[%emt 00:00:03]} Nxd5 {[%clk 01:11:01]} {[%emt
00:02:43]} 11. Nc3 {[%clk 01:09:21]} {[%emt 00:03:44]} Nxc3 {[%clk 01:08:03]}
{[%emt 00:03:28]} 12. Qxc3 {[%clk 01:06:08]} {[%emt 00:03:42]} Qxc3+ {[%clk
01:07:41]} {[%emt 00:00:53]} 13. bxc3 {[%clk 01:06:36]} {[%emt 00:00:02]} d5
{[%clk 01:07:14]} {[%emt 00:00:56]} 14. O-O-O {[%clk 01:05:36]} {[%emt
00:01:30]} Be6 {[%clk 01:06:38]} {[%emt 00:01:06]} 15. f3 {[%clk 01:04:42]}
{[%emt 00:01:24]} f5 {[%clk 01:03:09]} {[%emt 00:04:00]} 16. Ne2 {[%clk
01:04:41]} {[%emt 00:00:30]} g5 {[%clk 00:56:35]} {[%emt 00:07:03]} 17. h4
{[%clk 01:04:07]} {[%emt 00:01:05]} g4 {[%clk 00:48:05]} {[%emt 00:09:01]} 18.
fxg4 {[%clk 01:04:16]} {[%emt 00:00:20]} fxg4 {[%clk 00:48:34]} {[%emt
00:00:02]} 19. Nf4 {[%clk 01:04:28]} {[%emt 00:00:18]} Bf5 {[%clk 00:46:47]}
{[%emt 00:02:16]} 20. h5 {[%clk 01:02:54]} {[%emt 00:02:04]} Nc6 {[%clk
00:44:41]} {[%emt 00:02:36]} 21. Rxd5 {[%clk 01:02:25]} {[%emt 00:00:58]} Rac8
{[%clk 00:42:08]} {[%emt 00:02:57]} 22. Kb2 {[%clk 01:01:57]} {[%emt 00:01:06]}
b6 {[%clk 00:42:01]} {[%emt 00:00:37]} 23. h6 {[%clk 00:57:26]} {[%emt
00:05:00]} Na5 {[%clk 00:38:54]} {[%emt 00:03:38]} 24. Bf1 {[%clk 00:56:44]}
{[%emt 00:01:11]} Rc6 {[%clk 00:34:57]} {[%emt 00:04:27]} 25. Rh5 {[%clk
00:51:26]} {[%emt 00:05:47]} Bg6 {[%clk 00:35:15]} {[%emt 00:00:12]} 26. Rhg5
{[%clk 00:45:42]} {[%emt 00:06:15]} Rfc8 {[%clk 00:32:53]} {[%emt 00:02:51]} 27.
Rxg4 {[%clk 00:45:00]} {[%emt 00:01:12]} Nc4+ {[%clk 00:27:39]} {[%emt
00:05:46]} 28. Bxc4 {[%clk 00:45:20]} {[%emt 00:00:10]} Rxc4 {[%clk 00:28:08]}
29. Rd7 {[%clk 00:32:51]} {[%emt 00:12:58]} Rxc3 {[%clk 00:24:49]} {[%emt
00:03:52]} 30. Nxg6 {[%clk 00:27:15]} {[%emt 00:06:05]} hxg6 {[%clk 00:24:32]}
{[%emt 00:00:47]} 31. Rxg6+ {[%clk 00:27:41]} {[%emt 00:00:03]} Kh8 {[%clk
00:24:56]} {[%emt 00:00:04]} 32. Rgg7 {[%clk 00:27:44]} {[%emt 00:00:30]} 1-0